[Event "Romanian Team Blitz Open 2022"]
[Site "Sebes"]
[Date "2022.12.04"]
[Round "4.23"]
[White "Danila, Tudor-Gabriel"]
[Black "Simina, Alexandru-Ioan"]
[Result "1-0"]
[ECO "C47"]
[WhiteElo "1939"]
[BlackElo "1244"]
[Annotator "TA"]
[PlyCount "101"]
[EventDate "2022.12.04"]
[EventType "blitz"]
[EventCountry "ROU"]
[SourceTitle "playchess.com"]
[Source "ChessBase"]
[SourceQuality "1"]
[TimeControl "180+2"]

{[%evp 16,100,99,103,130,125,120,122,159,171,176,166,167,150,216,158,162,164,158,145,181,176,284,285,278,267,280,202,287,139,348,345,521,523,573,591,591,572,702,661,862,824,777,711,707,470,456,437,483,478,684,676,897,889,940,936,1215,1214,1145,1104,29980,29981,29990,29988,29988,29989,29991,29990,29990,29991,29991,29992,29992,29992,29992,29993,29993,29993,29994,29994,29995,29996,29996,29997,29998,29999,29999]} 1. e4 {[%emt 0:00:02]} e5 {[%emt 0:00:01]} 2. Nf3 {[%emt 0:00:01]} Nc6 {[%emt 0:00:02]} 3. Nc3 {[%emt 0:00:01]} Nf6 {[%emt 0:00:02]} 4. d4 {[%emt 0:00:01]} exd4 {[%emt 0:00:06]} 5. Nxd4 {[%emt 0:00:01]} Bc5 {[%emt 0:00:23]} 6. Be3 {[%emt 0:00:03]} Nxd4 {[%emt 0:00:05]} 7. Bxd4 {[%emt 0:00:01]} Bxd4 {[%emt 0:00:06]} 8. Qxd4 {[%emt 0:00:02]} d6 {[%emt 0:00:04]} 9. O-O-O {[%emt 0:00:14] [#] White is more active.} Bg4 $146 {[%emt 0:01:01] C47: Scotch Four Knights and Four Knights with 4 g3.} ({Predecessor:} 9... Qe7 10. f3 O-O 11. g4 c6 12. Qxd6 Qxd6 13. Rxd6 Be6 14. Be2 Rfd8 15. Rxd8+ Rxd8 16. h3 Kf8 17. f4 Ke7 18. g5 Ne8 {1-0 (52) Zarnicki,P (2514)-Badelka,O (2418) Chess.com INT 2021}) 10. f3 {[%emt 0:00:01]} Be6 {[%emt 0:00:03]} 11. g4 {[%emt 0:00:01]} Nd7 {[%emt 0:00:03] White is better.} 12. Qxg7 {[%emt 0:00:03]} Qf6 {[%emt 0:00:14]} 13. Qxf6 {[%emt 0:00:02]} Nxf6 {[%emt 0:00:02]} 14. Bb5+ {[%emt 0:00:12]} Bd7 {[%emt 0:00:14]} (14... c6 $16) 15. Bc4 {[%emt 0:00:02][%cal Oe4e5] Black must now prevent e5!} Rf8 {[%emt 0:00:11]} 16. Rhe1 {[%emt 0:00:03] [#] And now e5 would win.} O-O-O {[%emt 0:00:03]} 17. Kd2 {[%emt 0:00:10]} h5 {[%emt 0:00:22]} 18. g5 {[%emt 0:00:01]} Nh7 {[%emt 0:00:04]} (18... Ng8 $142 19. a3 Ne7) 19. h4 $18 {[%emt 0:00:00]} a6 {[%emt 0:00:06]} 20. a3 {[%emt 0:00:05]} Be6 {[%emt 0:00:07]} 21. Bf1 {[%emt 0:00:13]} Rg8 {[%emt 0:00:05]} (21... Rh8 $142 22. f4 Bg4) 22. Ne2 {[%emt 0:00:02]} (22. Be2 $18) 22... f6 $2 {[%emt 0:00:03] [#] Loses the game.} (22... Nf8 $16) 23. Nf4 {[%emt 0:00:09][%csl LRe6,LRh5]} Rde8 {[%emt 0:00:07]} (23... Bf7 {was worth a try.} 24. Bh3+ Kb8) 24. Nxe6 {[%emt 0:00:03]} ({Less strong is} 24. Nxh5 fxg5 25. hxg5 Nxg5 $16) ({Not} 24. g6 Nf8 25. Ke3 (25. Nxh5 Rxg6 26. Nf4 Rh6 $16) 25... b5 $18) 24... Rxe6 {[%emt 0:00:02]} 25. Bh3 {[%emt 0:00:01]} Kd7 {[%emt 0:00:04]} 26. f4 {[%emt 0:00:01][%cal Bf3f4,Bf4f5][%mdl 32]} fxg5 {[%emt 0:00:03]} 27. hxg5 {[%emt 0:00:02]} Rf8 {[%emt 0:00:04]} 28. Bxe6+ {[%emt 0:00:01]} Kxe6 {[%emt 0:00:11][%mdl 4096] Endgame KRR-KRN} 29. g6 Nf6 {[%emt 0:00:00]} 30. f5+ {[%emt 0:00:02]} Ke5 {[%emt 0:00:00]} 31. Kd3 {[%emt 0:00:02]} Ng4 {[%emt 0:00:00]} 32. Re2 {[%emt 0:00:02] Prevents Nf2+.} h4 {[%emt 0:00:00]} (32... Rg8 $142 33. Rh1 Nf6) 33. Rh1 {[%emt 0:00:02]} h3 {[%emt 0:00:05]} 34. Rxh3 {[%emt 0:00:02]} c5 {[%emt 0:00:01]} 35. Rg3 {[%emt 0:00:02]} c4+ {[%emt 0:00:04]} 36. Kxc4 {[%emt 0:00:02]} Rc8+ {[%emt 0:00:02]} 37. Kd3 {[%emt 0:00:01]} Kf6 {[%emt 0:00:01]} 38. Rxg4 {[%emt 0:00:01] White mates.} d5 {[%emt 0:00:03]} 39. e5+ {[%emt 0:00:02]} Kxf5 {[%emt 0:00:03]} 40. Rgg2 {[%emt 0:00:01]} Re8 {[%emt 0:00:02]} 41. Kd4 {[%emt 0:00:01]} Ke6 {[%emt 0:00:01]} 42. g7 {[%emt 0:00:01]} Rg8 {[%emt 0:00:01]} 43. Rg6+ {[%emt 0:00:00]} Kf7 {[%emt 0:00:01]} 44. Rf6+ {[%emt 0:00:02]} Ke7 {[%emt 0:00:02]} 45. Rg2 {[%emt 0:00:02]} Kd7 {[%emt 0:00:03]} 46. Kxd5 {[%emt 0:00:01]} b5 {[%emt 0:00:02]} 47. e6+ {[%emt 0:00:01]} Ke7 {[%emt 0:00:01]} 48. Rf7+ {[%emt 0:00:01]} Kd8 {[%emt 0:00:02]} 49. Rh2 {[%emt 0:00:00]} Ke8 {[%emt 0:00:02]} 50. Rh8 {[%emt 0:00:01]} Rxh8 {[%emt 0:00:01]} 51. gxh8=R# {[%emt 0:00:05] Weighted Error Value: White=0.29 (precise) /Black=0.80} 1-0

[Event "Romanian Team Blitz Open 2022"]
[Site "Sebes"]
[Date "2022.12.04"]
[Round "4.24"]
[White "Simina, Andrei-Petru"]
[Black "Mainescu, Andrei-Cristian"]
[Result "0-1"]
[ECO "D00"]
[WhiteElo "1033"]
[BlackElo "1860"]
[Annotator "NA RC COMBH"]
[PlyCount "80"]
[EventDate "2022.12.04"]
[EventType "blitz"]
[EventCountry "ROU"]
[SourceTitle "playchess.com"]
[Source "ChessBase"]
[SourceQuality "1"]
[TimeControl "180+2"]

1. d4 {[%emt 0:00:01]} Nf6 {[%emt 0:00:02]} 2. Nc3 {[%emt 0:00:02]} d5 {[%emt 0:00:17]} 3. Nf3 {[%emt 0:00:03]} Bf5 {[%emt 0:00:05]} 4. Bf4 {[%emt 0:00:04]} e6 {[%emt 0:00:04]} 5. Nb5 {[%emt 0:00:08]} Na6 {[%emt 0:00:05]} 6. e3 {[%emt 0:00:16]} c6 {[%emt 0:00:03]} 7. Nc3 {[%emt 0:00:09]} Bb4 {[%emt 0:00:09]} 8. Bd3 {[%emt 0:00:11]} Ne4 {[%emt 0:00:11]} 9. Bxe4 {[%emt 0:00:07]} Bxe4 {[%emt 0:00:06]} 10. O-O {[%emt 0:00:10]} Bf5 {[%emt 0:00:03]} 11. Ne2 {[%emt 0:00:19]} h6 {[%emt 0:00:39]} 12. Ng3 {[%emt 0:00:03]} Bh7 {[%emt 0:00:05]} 13. c3 {[%emt 0:00:04]} Be7 {[%emt 0:00:17]} 14. Qb3 {[%emt 0:00:03]} Qc8 {[%emt 0:00:09]} 15. Nh5 {[%emt 0:00:15]} Bg6 {[%emt 0:00:36]} 16. Ng3 {[%emt 0:00:25]} Bd3 {[%emt 0:00:20]} 17. Rfd1 {[%emt 0:00:06]} Bc4 {[%emt 0:00:02]} 18. Qc2 {[%emt 0:00:08]} c5 {[%emt 0:00:02]} 19. Ne5 {[%emt 0:00:06]} g5 {[%emt 0:00:04]} 20. Nxc4 {[%emt 0:00:06]} dxc4 {[%emt 0:00:04]} 21. Be5 {[%emt 0:00:02]} f6 {[%emt 0:00:02]} 22. Qa4+ {[%emt 0:00:34]} Kf7 {[%emt 0:00:03]} 23. Qxc4 {[%emt 0:00:03]} fxe5 {[%emt 0:00:01]} 24. Ne4 {[%emt 0:00:06]} cxd4 {[%emt 0:00:03]} 25. Qxc8 {[%emt 0:00:03]} Raxc8 {[%emt 0:00:01]} 26. exd4 exd4 {[%emt 0:00:01]} 27. cxd4 {[%emt 0:00:03]} Rhd8 {[%emt 0:00:01]} 28. Rac1 {[%emt 0:00:13]} Rxc1 29. Rxc1 {[%emt 0:00:01]} Rxd4 {[%emt 0:00:04]} 30. h3 {[%emt 0:00:03]} Rxe4 {[%emt 0:00:01]} 31. Rc8 {[%emt 0:00:04]} Bd6 {[%emt 0:00:01]} 32. g3 {[%emt 0:00:01]} Rb4 {[%emt 0:00:02]} 33. Ra8 {[%emt 0:00:03]} Rxb2 {[%emt 0:00:02]} 34. Rxa7 {[%emt 0:00:02]} Bc5 {[%emt 0:00:02]} 35. Ra8 {[%emt 0:00:02]} Bxf2+ {[%emt 0:00:02]} 36. Kh1 {[%emt 0:00:04]} Bxg3 {[%emt 0:00:01]} 37. Rb8 {[%emt 0:00:03]} Nxb8 {[%emt 0:00:03]} 38. h4 {[%emt 0:00:02]} gxh4 {[%emt 0:00:02]} 39. a4 {[%emt 0:00:02]} h3 {[%emt 0:00:01]} 40. a5 {[%emt 0:00:00]} Rb1# {[%emt 0:00:02]} 0-1

[Event "Romanian Team Blitz Open 2022"]
[Site "Sebes"]
[Date "2022.12.04"]
[Round "4.25"]
[White "Dragomirescu, Robin-Alexandru"]
[Black "Zaim, Marian"]
[Result "1/2-1/2"]
[ECO "A03"]
[WhiteElo "2337"]
[BlackElo "1935"]
[Annotator "TA"]
[PlyCount "100"]
[EventDate "2022.12.04"]
[EventType "blitz"]
[EventCountry "ROU"]
[SourceTitle "playchess.com"]
[Source "ChessBase"]
[SourceQuality "1"]
[TimeControl "180+2"]

{[%evp 14,100,-1,0,0,6,3,-2,0,0,5,9,20,6,8,-7,-6,-12,67,72,76,0,0,0,0,-10,0,0,0,0,0,0,4,0,0,0,0,0,0,0,0,0,0,0,0,0,0,0,0,0,0,0,0,0,0,0,0,0,0,0,0,0,0,-6,-6,-6,-6,-6,-6,-6,-6,-6,-6,-6,-6,-6,-6,-6,-6,-6,-6,-6,-6,-6,-6,-6,0,-6,0]} 1. b3 {[%emt 0:00:02]} d5 {[%emt 0:00:00]} 2. Bb2 {[%emt 0:00:01]} c5 {[%emt 0:00:02]} 3. e3 {[%emt 0:00:02]} Nc6 {[%emt 0:00:01]} 4. Bb5 {[%emt 0:00:01]} Bd7 {[%emt 0:00:08]} 5. f4 {[%emt 0:00:08]} e6 {[%emt 0:00:13]} 6. Nf3 {[%emt 0:00:02]} Nf6 {[%emt 0:00:03]} 7. O-O {[%emt 0:00:03]} Be7 {[%emt 0:00:03]} 8. d3 {[%emt 0:00:10]} a6 {[%emt 0:00:07] A03: Bird's Opening with 1...d5.} 9. Bxc6 {[%emt 0:00:02]} Bxc6 {[%emt 0:00:01]} 10. Ne5 $1 {[%emt 0:00:03] 10.Ne5 is better than 10.Nbd2.} Qc7 {[%emt 0:00:05]} 11. Nd2 {[%emt 0:00:02][%cal Bb1d2,Bd2f3,Bf3e5][%mdl 32]} Rd8 {[%emt 0:00:09] [#]} 12. a4 $146 {[%emt 0:00:06]} ({Predecessor:} 12. Qf3 d4 13. e4 Nd7 14. Nxc6 Qxc6 15. Qg3 O-O 16. Nf3 f5 17. Rae1 Rde8 18. Bc1 {0-1 (85) Esipenko,A (2682)-Sarana,A (2654) Chess.com INT 2020}) 12... b5 {[%emt 0:00:07]} 13. axb5 {[%emt 0:00:06]} axb5 {[%emt 0:00:02]} 14. Nxc6 {[%emt 0:00:07]} Qxc6 {[%emt 0:00:01]} 15. Nf3 {[%emt 0:00:06]} Ra8 {[%emt 0:00:12] Against Ra7} (15... O-O $11) 16. Ne5 $14 {[%emt 0:00:03]} Qb7 {[%emt 0:00:03]} 17. Qf3 {[%emt 0:00:30] White is more active.} (17. Rxa8+ $16 Qxa8 18. g4) 17... O-O $11 {[%emt 0:00:07] The position is equal.} 18. f5 {[%emt 0:00:05]} Rxa1 {[%emt 0:00:13]} 19. Rxa1 {[%emt 0:00:02]} Ra8 {[%emt 0:00:35]} 20. Rxa8+ {[%emt 0:00:57]} Qxa8 {[%emt 0:00:01]} 21. fxe6 {[%emt 0:00:02]} fxe6 {[%emt 0:00:02]} 22. Qh3 {[%emt 0:00:02]} Qc8 {[%emt 0:00:21]} 23. g4 {[%emt 0:00:04]} Nd7 {[%emt 0:00:11] Inhibits g5.} 24. Nxd7 {[%emt 0:00:34]} Qxd7 {[%emt 0:00:02][%mdl 4096] Endgame KQB-KQB} 25. Qg3 {[%emt 0:00:12]} Bd6 {[%emt 0:00:02]} 26. Be5 {[%emt 0:00:01]} Bf8 {[%emt 0:00:14]} 27. Kg2 {[%emt 0:00:07]} Qc6 {[%emt 0:00:07]} 28. Qf3 {[%emt 0:00:06]} c4 {[%emt 0:00:06]} 29. bxc4 {[%emt 0:00:02]} bxc4 {[%emt 0:00:01]} 30. Kg3 {[%emt 0:00:06]} cxd3 {[%emt 0:00:01]} 31. cxd3 {[%emt 0:00:01]} Qb5 {[%emt 0:00:05]} 32. d4 {[%emt 0:00:04]} Qd7 {[%emt 0:00:02]} 33. g5 {[%emt 0:00:02]} Qf7 {[%emt 0:00:02]} 34. Qg4 {[%emt 0:00:01]} Qg6 {[%emt 0:00:02]} 35. h4 {[%emt 0:00:02]} Qf7 {[%emt 0:00:04]} 36. h5 {[%emt 0:00:01]} g6 {[%emt 0:00:23]} 37. h6 {[%emt 0:00:02]} Qf5 {[%emt 0:00:03]} 38. Qxf5 {[%emt 0:00:06]} exf5 {[%emt 0:00:03] KB-KB} 39. Kf4 {[%emt 0:00:03]} Kf7 {[%emt 0:00:01]} 40. Bb8 {[%emt 0:00:02]} Ke6 {[%emt 0:00:01]} 41. Be5 {[%emt 0:00:02]} Ba3 {[%emt 0:00:02]} 42. Kf3 {[%emt 0:00:01]} Bc1 {[%emt 0:00:02]} 43. Ke2 {[%emt 0:00:02]} Kd7 {[%emt 0:00:03]} 44. Bf4 {[%emt 0:00:02]} Ba3 {[%emt 0:00:04]} 45. Kd3 {[%emt 0:00:03]} Kc6 {[%emt 0:00:01]} 46. Kc3 {[%emt 0:00:02]} Kb5 {[%emt 0:00:02]} 47. Kb3 {[%emt 0:00:00]} Be7 {[%emt 0:00:02]} 48. Kc3 {[%emt 0:00:05]} Bd8 {[%emt 0:00:03]} 49. Kb3 {[%emt 0:00:01]} Be7 {[%emt 0:00:00]} 50. Kc3 {[%emt 0:00:01]} Bd8 {Weighted Error Value: White=0.03 (flawless) /Black=0.05 (flawless)} 1/2-1/2

[Event "Romanian Team Blitz Open 2022"]
[Site "Sebes"]
[Date "2022.12.04"]
[Round "4.26"]
[White "Tinta, Gheorghe"]
[Black "Ionescu, Mihai"]
[Result "0-1"]
[ECO "A17"]
[WhiteElo "1855"]
[BlackElo "2243"]
[Annotator "TA"]
[PlyCount "56"]
[EventDate "2022.12.04"]
[EventType "blitz"]
[EventCountry "ROU"]
[SourceTitle "playchess.com"]
[Source "ChessBase"]
[SourceQuality "1"]
[TimeControl "180+2"]

{[%evp 19,56,-20,-28,-62,-44,-51,-28,-26,-21,-44,-44,-45,-55,-55,-61,-77,-31,-191,-54,-54,-54,-85,-76,-109,-86,-185,-112,-217,-204,-216,-186,-345,-312,-466,-369,-573,-370,-1536,-1497]} 1. d4 {[%emt 0:00:00]} d5 {[%emt 0:00:01]} 2. Nf3 {[%emt 0:00:01]} Nf6 3. g3 c6 {[%emt 0:00:03]} 4. Bg2 {[%emt 0:00:01]} Bf5 {[%emt 0:00:03]} 5. c4 {[%emt 0:00:04]} e6 {[%emt 0:00:02]} 6. cxd5 {[%emt 0:00:04]} exd5 {[%emt 0:00:03]} 7. Nc3 {[%emt 0:00:03]} Bd6 {[%emt 0:00:03]} 8. O-O {[%emt 0:00:05]} O-O {[%emt 0:00:03]} 9. Qb3 {[%emt 0:00:17]} Qb6 {[%emt 0:00:04]} 10. Qxb6 {[%emt 0:00:09]} axb6 {[%emt 0:00:01]} 11. b3 {[%emt 0:00:07] A17: English Opening: 1...Nf6 with ...Bb4.} Nbd7 {[%emt 0:00:04] [#] Black is more active.} 12. Nh4 $146 {[%emt 0:00:10]} ({Predecessor:} 12. Be3 Ba3 13. Bc1 b5 14. Nh4 Be6 15. f4 Nb6 16. Nf3 Ra6 17. Ne5 Bf5 18. Bxa3 Rxa3 {0-1 (35) Paul,B (1629)-Reuben,S (2068) England 2013}) 12... Bc2 {[%emt 0:00:25]} 13. Bb2 {[%emt 0:00:21] Black has an edge.} h6 {[%emt 0:00:02]} 14. Rac1 {[%emt 0:00:07]} Bh7 {[%emt 0:00:02]} 15. a4 {[%emt 0:00:04]} Rfe8 {[%emt 0:00:06]} 16. Bh3 {[%emt 0:00:08]} Bb4 {[%emt 0:00:18]} 17. e3 {[%emt 0:00:06]} Rad8 {[%emt 0:00:19]} ({Black should play} 17... g5 $17 18. Nf5 h5) 18. Ne2 $2 {[%emt 0:00:13]} (18. Bf5 $15) 18... Ne4 {[%emt 0:00:07]} (18... Bd3 $19 19. Nc3 Bxf1 20. Bxf1 g6) 19. Nf3 $15 {[%emt 0:00:14]} g5 {[%emt 0:00:27]} 20. Bxd7 {[%emt 0:00:09]} Rxd7 {[%emt 0:00:03]} 21. Ne5 {[%emt 0:00:01]} Rde7 {[%emt 0:00:07] And now ...Nd2 would win.} 22. Nd3 {[%emt 0:00:22] [#]} (22. Rfd1 $17) 22... Bd6 {[%emt 0:00:02]} (22... Nxg3 $1 $19 {[%mdl 512]} 23. Nxg3 Bxd3) 23. b4 {[%emt 0:00:06]} (23. Rcd1 $17) 23... Nd2 $19 {[%emt 0:00:12][%cal Be4d2,Bd2c4,Bc4e3][%mdl 32]} 24. Rfd1 {[%emt 0:00:02] [#]} Nc4 $36 {[%emt 0:00:17][%mdl 2048] Threatens to win with ...Bxd3. Black has strong initiative.} ({Stronger than} 24... Bxd3 25. Rxd2 Bc4 26. Bc3 $17) 25. Rc2 $2 {[%emt 0:00:10]} (25. Bc3) 25... Ra8 {[%emt 0:00:04]} 26. Kg2 {[%emt 0:00:50]} (26. Nc3 $142) 26... Rxa4 {[%emt 0:00:05][%cal Oe7e3]} 27. Bc3 {[%emt 0:00:00]} (27. Nc3 $142 Ra8 28. Bc1) 27... Re8 {[%emt 0:00:03][%cal Oe8e3] aiming for ...Rxe3!} 28. f4 $2 {[%emt 0:00:00]} (28. Kg1) 28... Nxe3+ {[%emt 0:00:10] Weighted Error Value: White=1.05/Black=0.45} 0-1

[Event "Romanian Team Blitz Open 2022"]
[Site "Sebes"]
[Date "2022.12.04"]
[Round "4.27"]
[White "Dragomirescu, Calin"]
[Black "Dumitrascu, Daniel"]
[Result "1-0"]
[ECO "D08"]
[WhiteElo "1971"]
[BlackElo "1694"]
[Annotator "TA"]
[PlyCount "83"]
[EventDate "2022.12.04"]
[EventType "blitz"]
[EventCountry "ROU"]
[SourceTitle "playchess.com"]
[Source "ChessBase"]
[SourceQuality "1"]
[TimeControl "180+2"]

{[%evp 11,83,53,79,43,55,80,145,52,45,50,68,14,11,0,42,13,43,0,47,0,1,8,6,-81,-81,-96,24,19,20,21,98,41,79,42,122,121,194,128,143,129,164,147,192,181,370,306,305,240,284,280,295,286,384,391,433,418,430,420,494,480,498,492,501,490,643,604,842,550,643,595,1076,1075,1222,1090]} 1. d4 {[%emt 0:00:01]} d5 {[%emt 0:00:02]} 2. c4 {[%emt 0:00:01]} e5 {[%emt 0:00:01]} 3. dxe5 {[%emt 0:00:02]} d4 {[%emt 0:00:01]} 4. Nf3 {[%emt 0:00:04]} Nc6 {[%emt 0:00:01]} 5. Nbd2 {[%emt 0:00:01]} Bg4 {[%emt 0:00:10]} 6. a3 {[%emt 0:00:06]} Nge7 {[%emt 0:00:03]} 7. b4 {[%emt 0:00:04] D08: Albin Counter Gambit.} Ng6 $1 {[%emt 0:00:01]} 8. Bb2 {[%emt 0:00:04]} Ncxe5 {[%emt 0:00:24]} ({Black should play} 8... Ngxe5 9. Qc2 Nxf3+ 10. Nxf3 Qf6) 9. h3 {[%emt 0:00:21]} (9. Nxd4 $2 Nd3+ 10. exd3 Bxd1 11. Kxd1 Be7 $19) (9. Bxd4 $16 f6 10. e3) 9... Bxf3 $14 {[%emt 0:00:11]} 10. Nxf3 {[%emt 0:00:06]} Nxf3+ {[%emt 0:00:23]} 11. exf3 {[%emt 0:00:02] [#]} (11. gxf3 $14 c5 12. Rg1) 11... Qe7+ $146 {[%emt 0:00:07]} ({Predecessor:} 11... c5 12. b5 Be7 13. Bd3 Qa5+ 14. Qd2 Qxd2+ 15. Kxd2 Ne5 16. f4 Nxd3 17. Kxd3 O-O 18. Rae1 Bf6 19. Re2 a6 20. a4 {½-½ (20) Da Costa,M (1588)-Espindola,C (1438) Lages 2020}) 12. Qe2 {[%emt 0:00:10]} O-O-O {[%emt 0:00:01]} 13. Qxe7 {[%emt 0:00:02]} (13. c5 $5 {[%cal Re1c1]}) 13... Bxe7 {[%emt 0:00:01]} 14. Bd3 {[%emt 0:00:15]} Bf6 {[%emt 0:00:02]} (14... c5 $11) 15. O-O {[%emt 0:00:09]} (15. Bf5+ $14 {is superior.} Kb8 16. Bxg6 hxg6 17. Kd2) 15... Ne5 {[%emt 0:00:03]} 16. Bf5+ {[%emt 0:02:06]} Kb8 17. Rac1 {[%emt 0:00:00]} (17. c5 $11) 17... g6 $17 {[%emt 0:00:01]} 18. Be4 {[%emt 0:00:00] [#]} Bg7 {[%emt 0:00:14]} (18... Bg5 $1 $17 {[%cal Rg5c1]} 19. Rcd1 Nxc4 20. Bxd4 Rhe8) 19. f4 $11 {[%emt 0:00:00]} f5 {[%emt 0:00:34]} 20. Bb1 {[%emt 0:00:00]} Nf7 {[%emt 0:00:03]} (20... Nd7 $11 {keeps the balance.}) 21. Rcd1 {[%emt 0:00:00]} (21. c5 $16) 21... Rhe8 {[%emt 0:00:03][%cal Oc7c5]} 22. Rfe1 {[%emt 0:00:00]} a6 {[%emt 0:00:22]} ({Better is} 22... Nd6 $14) 23. c5 $16 {[%emt 0:00:00]} Kc8 {[%emt 0:00:29] [#]} (23... Nh6 $16 {might work better.}) 24. Kf1 {[%emt 0:00:00]} (24. Ba2 $1 $18) 24... Bh8 {[%emt 0:00:04]} 25. Bd3 {[%emt 0:00:00]} Kb8 {[%emt 0:00:04]} 26. g3 {[%emt 0:00:00]} h6 {[%emt 0:00:06]} 27. h4 {[%emt 0:00:00]} g5 $2 {[%emt 0:00:01]} (27... h5 28. Bc4 Nh6) 28. hxg5 {[%emt 0:00:00]} (28. Bxf5 Rxe1+ 29. Kxe1 gxh4 30. gxh4 h5 $18) 28... hxg5 {[%emt 0:00:01]} 29. fxg5 {[%emt 0:00:00]} (29. Bxf5 $6 Rxe1+ 30. Rxe1 gxf4 $18) 29... Nxg5 {[%emt 0:00:02]} 30. Rxe8 {[%emt 0:00:00]} ({Don't play} 30. Bxf5 $6 Rf8 $18) 30... Rxe8 {[%emt 0:00:00]} 31. Bxf5 {[%emt 0:00:00]} Rd8 {[%emt 0:00:07]} 32. Kg2 {[%emt 0:00:00]} a5 {[%emt 0:00:08]} 33. f4 {[%emt 0:00:00]} (33. bxa5 Nf7 34. f4 Re8 $18) 33... Nf7 {[%emt 0:00:03]} 34. Kf3 {[%emt 0:00:00]} ({Don't take} 34. bxa5 Nh6 $18) 34... Nh6 {[%emt 0:00:01]} 35. Bd3 {[%emt 0:00:00] White is clearly winning.} Re8 {[%emt 0:00:06]} 36. Bc1 {[%emt 0:00:00]} ({Not} 36. bxa5 Re3+ 37. Kg2 Re8 $18) 36... axb4 {[%emt 0:00:06]} 37. axb4 {[%emt 0:00:00]} Kc8 {[%emt 0:00:00]} 38. Rh1 {[%emt 0:00:00]} Nf7 {[%emt 0:00:01]} 39. Rh7 {[%emt 0:00:00]} Nd8 {[%emt 0:00:04]} 40. Bd2 {[%emt 0:00:00]} Ne6 {[%emt 0:00:03]} 41. Bf5 {[%emt 0:00:00]} Kd8 {[%emt 0:00:02]} 42. Bxe6 {[%emt 0:00:00] Weighted Error Value: White=0.33/Black=0.53} 1-0

[Event "Romanian Team Blitz Open 2022"]
[Site "Sebes"]
[Date "2022.12.04"]
[Round "4.28"]
[White "Carac, Radu-Ionut"]
[Black "Santimbrean, Mihnea-Nicolae"]
[Result "0-1"]
[ECO "D36"]
[WhiteElo "1569"]
[BlackElo "1491"]
[Annotator "NA RC COMBH"]
[PlyCount "52"]
[EventDate "2022.12.04"]
[EventType "blitz"]
[EventCountry "ROU"]
[SourceTitle "playchess.com"]
[Source "ChessBase"]
[SourceQuality "1"]
[TimeControl "180+2"]

1. d4 {[%emt 0:00:02]} e6 {[%emt 0:00:00]} 2. c4 {[%emt 0:00:02]} d5 {[%emt 0:00:02]} 3. Nc3 {[%emt 0:00:02]} Nf6 {[%emt 0:00:01]} 4. Bg5 {[%emt 0:00:01]} Nbd7 {[%emt 0:00:01]} 5. e3 {[%emt 0:00:02]} c6 {[%emt 0:00:02]} 6. Nf3 {[%emt 0:00:02]} Be7 {[%emt 0:00:02]} 7. cxd5 {[%emt 0:00:03]} exd5 {[%emt 0:00:01]} 8. Bd3 {[%emt 0:00:03]} O-O {[%emt 0:00:04]} 9. O-O {[%emt 0:00:02]} h6 {[%emt 0:00:06]} 10. Bh4 {[%emt 0:00:01]} Re8 {[%emt 0:00:07]} 11. Qc2 {[%emt 0:00:02]} Ne4 {[%emt 0:00:26]} 12. Bxe7 {[%emt 0:00:03]} Qxe7 {[%emt 0:00:01]} 13. Rfe1 {[%emt 0:00:30]} Ndf6 {[%emt 0:00:02]} 14. Ne5 {[%emt 0:00:02]} Nxc3 {[%emt 0:00:10]} 15. bxc3 {[%emt 0:00:03]} Nd7 {[%emt 0:00:10]} 16. Nxd7 {[%emt 0:00:36]} Bxd7 {[%emt 0:00:03]} 17. e4 {[%emt 0:00:06]} dxe4 {[%emt 0:00:14]} 18. Rxe4 {[%emt 0:00:33]} Qg5 {[%emt 0:00:03]} 19. Rae1 {[%emt 0:00:11]} Rxe4 {[%emt 0:00:08]} 20. Rxe4 {[%emt 0:00:06]} Bh3 {[%emt 0:00:19]} 21. f3 {[%emt 0:00:01]} Bf5 {[%emt 0:00:19]} 22. Re1 {[%emt 0:00:03]} Bxd3 {[%emt 0:00:05]} 23. Qxd3 {[%emt 0:00:01]} Rd8 {[%emt 0:00:09]} 24. Rb1 {[%emt 0:00:03]} Re8 {[%emt 0:00:17]} 25. Rxb7 {[%emt 0:00:06]} Qc1+ {[%emt 0:00:02]} 26. Kf2 {[%emt 0:00:02]} Qe1# {[%emt 0:00:01]} 0-1